bitfinex/quotes_SOLUSD_20240808
["timestamp","ask_amount","ask_price","bid_price","bid_amount"]
[1723119324107,28.39,154.03,153.94,30.8556]
[1723119324320,28.39,154.01,153.94,30.8556]
[1723119324619,28.39,153.97,153.9,30.3171]
[1723119324912,45.34,153.96,153.9,30.3171]
[1723119327106,45.17,153.96,153.9,30.3171]
[1723119327412,1.6239981,154.01,153.9,30.3171]
[1723119327617,0.34,154.0,153.9,30.3171]
[1723119327797,45.34,154.0,153.9,30.3171]
[1723119328187,45.17,154.0,153.91,21.29913388]
[1723119328504,45.17,154.0,153.91,20.0]
[1723119328815,45.17,154.0,153.9,30.3171]
[1723119329397,0.17,153.99,153.9,30.3171]
[1723119329811,0.17,153.99,153.91,20.0]
[1723119331493,1.79394993,153.99,153.91,20.0]
[1723119331701,1.79394993,153.99,153.9,30.3171]
[1723119331702,0.17,153.98,153.9,30.3171]
[1723119332297,0.34,153.99,153.9,30.3171]
[1723119333311,6.834,153.99,153.9,30.3171]
[1723119333499,45.0,153.98,153.9,30.3171]
[1723119333707,0.34,153.97,153.9,30.3171]
[1723119337021,36.51,154.01,153.9,30.3171]
[1723119337191,43.0031,154.01,153.9,30.3171]
[1723119337615,36.51,154.01,153.9,31.61592269]
[1723119337823,12.585,154.03,153.91,21.29844594]
[1723119338118,31.6309,154.04,153.92,20.0]
[1723119338303,6.4912,154.06,153.93,20.0]
[1723119338495,6.4917,154.05,153.93,20.0]
[1723119339015,14.84042917,154.07,153.91,20.0]
[1723119339016,6.4922,154.03,153.91,20.0]
[1723119339316,6.4935,154.0,153.91,20.0]
[1723119339629,1.624133,154.0,153.91,20.0]
[1723119339917,0.34,153.99,153.9,30.3171]
[1723119342103,1.96406115,153.99,153.9,30.3171]
[1723119343198,6.4944,153.98,153.9,30.3171]
[1723119343505,45.34,153.97,153.9,30.3171]
[1723119344911,45.34,153.97,153.89,0.8464594]
[1723119345113,45.34,153.97,153.9,1.29950771]
[1723119345313,31.2611,154.01,153.9,1.29929365]
[1723119345491,31.2611,154.01,153.89,42.14550583]
[1723119346103,31.2611,154.01,153.89,20.8464594]
[1723119346300,37.7543,154.01,153.89,20.8464594]
[1723119346600,32.88511131,154.01,153.89,20.8464594]
[1723119346801,0.17,154.0,153.89,20.8464594]
[1723119347106,51.8339,154.0,153.89,20.8464594]
[1723119347313,51.8336,154.0,153.89,20.8464594]
[1723119347518,8.11808202,153.99,153.89,20.8464594]
[1723119347715,28.4,153.96,153.89,20.8464594]
[1723119348022,45.34,153.95,153.89,0.8464594]
[1723119349331,28.4,153.94,153.89,0.8464594]
[1723119349627,45.34,153.93,153.89,0.8464594]
[1723119350226,28.4,153.92,153.89,0.8464594]
[1723119350523,45.34,153.91,153.89,0.8464594]
[1723119358221,28.4,153.9,153.89,0.8464594]
[1723119358417,73.74,153.9,153.89,0.8464594]
[1723119359511,80.2377,153.9,153.89,0.8464594]
[1723119360014,73.74,153.9,153.89,0.8464594]
[1723119360921,0.34,153.9,153.89,0.8464594]
[1723119361126,0.17,153.9,153.89,0.8464594]
[1723119361931,28.4,153.93,153.89,0.8464594]
[1723119362439,28.4,153.91,153.89,0.8464594]
[1723119363108,45.34,153.9,153.89,0.8464594]
[1723119363709,51.8377,153.9,153.89,0.8464594]
[1723119364338,45.34,153.9,153.89,0.8464594]
[1723119364634,0.17,153.9,153.89,0.8464594]
[1723119364947,46.0632,153.89,153.78,10.18429631]
[1723119365236,28.4,153.87,153.79,31.0448]
[1723119365411,28.4,153.89,153.79,31.0448]
[1723119365614,28.4,153.89,153.8,12.8516]
[1723119366317,45.17,153.88,153.81,20.0]
[1723119366950,6.74696158,153.97,153.89,20.0]
[1723119367243,30.96240292,154.01,153.89,28.4]
[1723119367628,28.4,154.01,153.89,28.4]
[1723119367828,36.5170309,154.01,153.89,28.4]
[1723119368013,34.893,154.01,153.89,28.4]
[1723119368335,28.4,153.91,153.81,2.63869252]
[1723119368552,28.4,153.86,153.8,12.1077]
[1723119369119,28.4,153.84,153.79,30.1701]
[1723119369428,6.4991,153.87,153.79,30.1701]
[1723119369625,28.4,153.84,153.79,30.1701]
[1723119369825,46.96555976,153.83,153.79,30.1701]
[1723119370033,1.62555644,153.82,153.79,30.1701]
[1723119370235,45.34,153.83,153.76,12.9939]
[1723119370934,0.17,153.83,153.76,12.9939]
[1723119371141,28.4,153.86,153.77,20.0]
[1723119371337,45.17,153.85,153.77,20.0]
[1723119371526,46.79527933,153.85,153.77,20.0]
[1723119372145,46.79527933,153.85,153.78,20.0]
[1723119372344,45.17,153.85,153.78,20.0]
[1723119372533,1.62531677,153.89,153.78,20.0]
[1723119372735,1.62531677,153.89,153.79,20.0]
[1723119372932,1.62531677,153.89,153.8,20.0]
[1723119373132,1.62531677,153.89,153.78,20.0]
[1723119373746,1.62531677,153.89,153.8,31.4117]
[1723119373943,1.62496432,153.93,153.81,40.0]
[1723119374129,1.62491376,153.92,153.81,40.0]
[1723119374329,1.62491376,153.92,153.81,20.0]
[1723119375042,0.17,153.91,153.81,40.0]
[1723119375225,1.79494196,153.91,153.81,40.0]
[1723119375842,1.79494196,153.91,153.81,20.0]
[1723119376241,0.17,153.91,153.81,20.0]
[1723119376447,1.6249018,153.91,153.81,20.0]
[1723119376750,0.34,153.9,153.81,20.0]
[1723119379639,1.96490034,153.9,153.81,20.0]
[1723119380237,0.34,153.9,153.83,12.602]
[1723119380436,0.34,153.9,153.84,20.0]
[1723119380641,0.34,153.9,153.81,20.0]
[1723119380835,0.17,153.89,153.81,20.0]
[1723119381034,0.34,153.91,153.81,20.0]
[1723119381535,1.62498085,153.9,153.81,20.0]
[1723119381865,0.34,153.89,153.81,20.0]
[1723119385131,0.34,153.9,153.81,20.0]
[1723119389146,14.36659346,153.89,153.81,20.0]
[1723119389349,32.8042,153.87,153.75,39.3869826]
[1723119389553,45.34,153.86,153.75,36.82670179]
[1723119389854,45.34,153.86,153.75,30.9705]
[1723119390350,1.62527997,153.85,153.76,20.0]
[1723119390562,0.17,153.84,153.76,20.0]
[1723119390736,45.17,153.86,153.78,20.0]
[1723119391056,0.17,153.85,153.78,20.0]
[1723119391257,0.17,153.85,153.79,20.0]
[1723119391756,32.8042,153.87,153.8,20.0]
[1723119391936,32.8042,153.87,153.81,20.0]
[1723119393758,28.42,153.85,153.74,17.77357041]
[1723119393941,45.34,153.84,153.74,11.0341815]
[1723119394547,46.96554498,153.84,153.74,11.0341815]
[1723119395342,45.34,153.84,153.74,11.0341815]
[1723119395859,41.6854,153.83,153.74,11.0341815]
[1723119396055,45.34,153.82,153.74,11.0341815]
[1723119396243,46.96580908,153.82,153.74,11.0341815]
[1723119396444,45.34,153.82,153.74,11.0341815]
[1723119396974,46.96573794,153.82,153.74,11.0341815]
[1723119397156,46.96573794,153.82,153.75,20.0]
[1723119397534,45.34,153.82,153.75,20.0]
[1723119401075,0.17,153.82,153.75,20.0]
[1723119403775,13.2654,153.83,153.75,20.0]
[1723119405079,0.17,153.84,153.76,20.0]
[1723119405255,0.17,153.84,153.77,20.0]
[1723119407450,32.8042,153.87,153.77,20.0]
[1723119407749,45.34,153.86,153.77,20.0]
[1723119407950,1.62517482,153.85,153.77,20.0]
[1723119408270,0.17,153.84,153.77,20.0]
[1723119408459,0.34,153.84,153.77,20.0]
[1723119410177,0.34,153.85,153.77,20.0]
[1723119412064,0.17,153.85,153.77,20.0]
[1723119412275,30.216,153.92,153.78,48.42]
[1723119412459,58.636,153.92,153.81,20.0]
[1723119412656,58.636,153.92,153.82,20.0]
[1723119414174,45.17,153.91,153.82,20.0]
[1723119414380,33.0093,153.96,153.87,28.42]
[1723119414755,33.0093,153.96,153.88,20.0]
[1723119415162,30.04428345,153.95,153.88,20.0]
[1723119415482,30.04428345,153.95,153.85,20.0]
[1723119415676,30.04428345,153.95,153.83,20.0]
[1723119416183,28.42,153.91,153.83,20.0]
[1723119416375,28.42,153.91,153.79,20.0]
[1723119416376,45.46785876,153.9,153.79,20.0]
[1723119416568,45.46785876,153.9,153.78,81.4987]
[1723119417088,30.21505612,153.89,153.78,81.4987]
[1723119417261,45.17,153.88,153.78,81.4987]
[1723119417464,1.79518285,153.87,153.78,81.4987]
[1723119417653,0.17,153.86,153.78,53.0787]
[1723119417966,0.17,153.87,153.78,53.0787]
[1723119418579,0.17,153.87,153.78,33.0787]
[1723119419180,0.17,153.87,153.79,20.0]
[1723119420996,43.6728,153.9,153.79,20.0]
[1723119421366,30.9207,153.9,153.8,21.29979555]
[1723119421571,30.9207,153.9,153.82,20.0]
[1723119421767,44.8414,153.94,153.82,20.0]
[1723119422500,1.62460861,153.93,153.8,20.0]
[1723119422789,8.12110861,153.93,153.81,20.0]
[1723119422969,0.17,153.92,153.81,20.0]
[1723119423170,46.96493485,153.92,153.79,20.0]
[1723119423589,1.96493485,153.92,153.79,20.0]
[1723119423885,1.96495088,153.92,153.79,20.0]
[1723119424072,0.34,153.92,153.79,20.0]
[1723119424269,1.964993,153.92,153.79,20.0]
[1723119425088,8.461793,153.92,153.79,20.0]
[1723119425289,45.0,153.91,153.79,20.0]
[1723119425588,45.0,153.91,153.78,53.0787]
[1723119425589,31.7873,153.89,153.78,53.0787]
[1723119425764,45.34,153.88,153.78,33.0787]
[1723119425967,1.62521149,153.87,153.78,33.0787]
[1723119426186,0.34,153.86,153.78,33.0787]
[1723119426392,1.9653425,153.86,153.78,33.0787]
[1723119426599,1.9653425,153.86,153.75,20.0]
[1723119426888,1.9653425,153.86,153.74,49.87962902]
[1723119427189,1.9653425,153.86,153.74,44.0226815]
[1723119427689,0.34,153.86,153.74,44.0226815]
[1723119427878,0.17,153.85,153.74,44.0226815]
[1723119428387,0.34,153.87,153.75,20.0]
[1723119428580,0.34,153.87,153.75,40.0]
[1723119429701,0.34,153.87,153.75,50.18750007]
[1723119429991,14.94676454,153.88,153.75,50.18750007]
[1723119431390,0.17,153.87,153.75,50.18750007]
[1723119431582,45.34,153.87,153.75,50.18750007]
[1723119432286,45.17,153.87,153.78,20.0]
[1723119432596,13.3216,153.88,153.79,20.0]
[1723119433974,1.62489387,153.87,153.79,20.0]
[1723119434169,1.62489387,153.87,153.77,20.0]
[1723119434375,13.3216,153.88,153.77,20.0]
[1723119434788,13.3216,153.88,153.75,16.04413135]
[1723119434789,6.4996,153.86,153.75,10.18750007]
[1723119434996,45.17,153.85,153.74,53.8349594]
[1723119435187,0.17,153.84,153.74,53.8349594]
[1723119435376,45.0,153.84,153.74,53.8349594]
[1723119435694,0.34,153.83,153.74,53.8349594]
[1723119435893,0.17,153.82,153.74,53.8349594]
[1723119436100,0.17,153.85,153.74,33.8349594]
[1723119436401,33.36793982,153.85,153.74,0.8464594]
[1723119436600,45.17,153.84,153.74,0.8464594]
[1723119436770,30.0,153.81,153.74,0.8464594]
[1723119436976,0.17,153.8,153.74,0.8464594]
[1723119437290,45.17,153.8,153.75,10.18986421]
[1723119437604,45.17,153.8,153.76,20.0]
[1723119438096,0.17,153.79,153.74,0.8464594]
[1723119439297,58.4175,153.8,153.74,0.8464594]
[1723119440179,58.4175,153.8,153.74,20.8464594]
[1723119440381,1.62576037,153.79,153.74,20.8464594]
[1723119440585,0.17,153.78,153.74,0.8464594]
[1723119441090,0.17,153.79,153.74,0.8464594]
[1723119442077,39.86833338,153.85,153.74,0.8464594]
[1723119442078,12.1592,153.84,153.74,0.8464594]
[1723119442284,45.17,153.83,153.74,0.8464594]
[1723119442610,45.17,153.83,153.74,20.8464594]
[1723119443094,45.17,153.83,153.74,40.8464594]
[1723119443273,12.1592,153.84,153.74,40.8464594]
[1723119443705,12.1592,153.84,153.74,69.2864594]
[1723119444698,0.17,153.83,153.74,69.2864594]
[1723119445075,28.44,153.82,153.74,20.8464594]
[1723119445294,46.96582757,153.81,153.74,20.8464594]
[1723119445499,45.34,153.81,153.74,20.8464594]
[1723119448785,1.62582484,153.8,153.74,20.8464594]
[1723119448982,28.44,153.78,153.74,0.8464594]
[1723119449186,45.17,153.77,153.74,0.8464594]
[1723119449406,0.34,153.79,153.74,0.8464594]
[1723119449602,45.34,153.79,153.74,0.8464594]
[1723119449818,28.44,153.82,153.74,0.8464594]
[1723119449987,45.34,153.81,153.74,0.8464594]
[1723119451615,28.44,153.8,153.74,0.8464594]
[1723119451919,45.17,153.79,153.74,0.8464594]
[1723119452092,45.34,153.79,153.74,0.8464594]
[1723119452821,28.44,153.78,153.74,0.8464594]
[1723119452997,45.34,153.77,153.74,0.8464594]
[1723119453595,45.34,153.77,153.76,6.5036]
[1723119453793,28.44,153.8,153.74,0.8464594]
[1723119454008,40.5992,153.84,153.82,6.5007]
[1723119454216,12.1592,153.84,153.82,6.5007]
[1723119454418,12.1592,153.84,153.74,32.5909594]
[1723119454419,30.06550393,153.83,153.74,0.8464594]
[1723119454593,28.44,153.81,153.74,0.8464594]
[1723119455022,28.44,153.81,153.8,6.5019]
[1723119455196,28.44,153.81,153.74,0.8464594]
[1723119455197,28.44,153.81,153.79,6.5022]
[1723119455403,46.79572677,153.8,153.78,6.5024]
[1723119455615,46.96572677,153.8,153.78,6.5024]
[1723119455822,45.34,153.8,153.74,0.8464594]
[1723119456125,45.17,153.8,153.74,0.8464594]
[1723119456299,46.79576345,153.8,153.74,0.8464594]
[1723119456721,45.17,153.8,153.74,0.8464594]
[1723119457218,1.62588263,153.79,153.74,0.8464594]
[1723119457402,0.34,153.78,153.74,0.8464594]
[1723119457804,45.34,153.78,153.74,0.8464594]
[1723119458008,28.44,153.79,153.74,0.8464594]
[1723119458419,1.7958905,153.78,153.74,0.8464594]
[1723119459213,0.17,153.77,153.74,0.8464594]
[1723119459717,1.79614401,153.77,153.74,0.8464594]
[1723119459928,1.79614401,153.77,153.75,6.504]
[1723119459929,0.17,153.76,153.75,6.504]
[1723119460104,0.34,153.76,153.75,6.504]
[1723119460420,45.0,153.78,153.77,6.5032]
[1723119460720,45.34,153.78,153.77,6.5032]
[1723119460926,45.17,153.78,153.77,6.5032]
[1723119462125,30.06596349,153.81,153.74,0.8464594]
[1723119462295,45.34,153.8,153.74,0.8464594]
[1723119462722,45.34,153.8,153.78,6.5027]
[1723119463318,45.34,153.8,153.79,6.5023]
[1723119464330,45.34,153.8,153.74,0.8464594]
[1723119465005,45.17,153.8,153.74,0.8464594]
[1723119465725,30.2819,153.83,153.74,0.8464594]
[1723119465918,28.44,153.85,153.74,20.8464594]
[1723119466124,30.9723,153.87,153.76,28.44]
[1723119466426,30.9723,153.87,153.77,1.30010306]
[1723119466634,30.9723,153.87,153.77,21.30010306]
[1723119466802,30.9723,153.87,153.77,20.0]
[1723119467007,30.06533201,153.86,153.77,20.0]
[1723119467223,28.44,153.86,153.76,20.0]
[1723119467523,0.17,153.85,153.76,20.0]
[1723119467722,45.34,153.85,153.76,20.0]
[1723119467901,45.0,153.84,153.76,20.0]
[1723119468307,45.34,153.85,153.76,20.0]
[1723119468509,46.9653899,153.85,153.76,20.0]
[1723119470031,45.34,153.85,153.76,20.0]
[1723119472099,30.06538411,153.84,153.76,20.0]
[1723119472334,45.34,153.83,153.76,20.0]
[1723119472547,45.17,153.83,153.76,20.0]
[1723119472711,28.44,153.84,153.76,20.0]
[1723119473221,0.17,153.85,153.77,1.30030809]
[1723119473606,30.9723,153.87,153.76,20.0]
[1723119473806,43.0602973,153.88,153.76,40.0]
[1723119474017,14.6202973,153.88,153.76,40.0]
[1723119474331,28.44,153.87,153.76,20.0]
[1723119475031,1.79521606,153.86,153.76,20.0]
[1723119475207,0.17,153.85,153.76,20.0]
[1723119475410,45.17,153.85,153.76,20.0]
[1723119475826,0.17,153.85,153.76,20.0]
[1723119476736,30.23535669,153.85,153.76,20.0]
[1723119476935,45.17,153.84,153.76,20.0]
[1723119477132,0.17,153.83,153.76,20.0]
[1723119480711,0.17,153.84,153.77,1.30035463]
[1723119480916,28.44,153.87,153.76,20.0]
[1723119482340,45.34,153.86,153.76,20.0]
[1723119483846,45.34,153.86,153.76,21.30019327]
[1723119484138,30.06526159,153.85,153.76,20.0]
[1723119484436,45.34,153.84,153.76,20.0]
[1723119484740,1.62541043,153.83,153.76,20.0]
[1723119485613,45.34,153.84,153.76,20.0]
[1723119486127,1.62548942,153.83,153.76,20.0]
[1723119486333,0.34,153.82,153.76,20.0]
[1723119486821,0.34,153.83,153.76,20.0]
[1723119487141,0.17,153.83,153.76,20.0]
[1723119487825,0.17,153.83,153.75,32.7914]
[1723119488015,0.34,153.83,153.75,32.7914]
[1723119488419,30.40558911,153.83,153.75,32.7914]
[1723119488637,45.0,153.82,153.75,32.7914]
[1723119488839,0.34,153.81,153.75,32.7914]
[1723119489039,45.0,153.82,153.75,32.7914]
[1723119489723,28.44,153.87,153.75,32.7914]
[1723119489929,28.44,153.89,153.77,12.6059]
[1723119490237,28.44,153.89,153.79,32.469]
[1723119491242,45.0,153.88,153.79,32.469]
[1723119491443,0.17,153.87,153.79,32.469]
[1723119491943,0.34,153.87,153.79,32.469]
[1723119492143,30.40509506,153.87,153.79,32.469]
[1723119492376,28.44,153.85,153.79,32.469]
[1723119492518,28.44,153.83,153.77,12.6059]
[1723119492827,45.17,153.82,153.77,12.6059]
[1723119495428,1.62556031,153.89,153.77,12.6059]
[1723119495429,28.44,153.89,153.78,1.30044596]
[1723119495636,28.44,153.89,153.77,12.6059]
[1723119496372,34.9382,153.89,153.77,12.6059]
[1723119496565,28.44,153.87,153.77,12.6059]
[1723119497552,45.34,153.86,153.77,12.6059]
[1723119497981,30.06540972,153.85,153.77,12.6059]
[1723119498275,28.44,153.83,153.77,12.6059]
[1723119498479,45.34,153.82,153.77,12.6059]
[1723119500256,0.17,153.82,153.77,12.6059]
[1723119500564,28.44,153.85,153.77,12.6059]
[1723119500767,45.34,153.84,153.77,12.6059]
[1723119502983,28.44,153.87,153.77,12.6059]
[1723119503283,0.17,153.86,153.78,32.73631732]
[1723119503574,59.7518,153.91,153.78,32.73631732]
[1723119503987,6.4977,153.9,153.78,32.73631732]
[1723119504157,6.4977,153.9,153.78,31.4362]
[1723119504357,34.9377,153.9,153.78,31.4362]
[1723119505085,28.44,153.9,153.78,31.4362]
[1723119505255,34.937,153.92,153.79,29.73994899]
[1723119505454,28.44,153.92,153.82,33.0281]
[1723119505874,34.9369,153.92,153.82,33.0281]
[1723119506075,28.44,153.92,153.82,33.0281]
[1723119506279,28.44,153.94,153.83,29.73959823]
[1723119506576,34.9351,153.96,153.83,29.73959823]
[1723119507986,28.44,153.96,153.84,43.9955]
[1723119508199,28.44,153.98,153.85,61.72461898]
[1723119508363,34.9337,154.0,153.88,31.9853]
[1723119508562,34.9337,154.0,153.89,1.29916893]
[1723119508782,6.4939,153.99,153.9,1.29917095]
[1723119509405,28.44,154.0,153.88,31.9853]
[1723119509406,34.9336,154.0,153.88,31.9853]
[1723119509563,28.44,154.0,153.89,1.29901836]
[1723119509973,28.44,154.0,153.89,29.73901836]
[1723119510169,28.44,154.03,153.92,31.409]
[1723119510372,34.9314,154.05,153.93,1.29875334]
[1723119510575,34.9314,154.05,153.94,13.0401]
[1723119510867,28.44,154.06,153.96,31.9279]
[1723119511067,34.9312,154.06,153.96,31.9279]
[1723119511587,28.44,154.06,153.96,33.22657973]
[1723119512196,34.931,154.06,153.96,33.22657973]
[1723119513778,28.44,154.06,153.96,33.22657973]
[1723119513970,0.17,154.05,153.96,33.22657973]
[1723119514371,28.44,154.06,153.96,31.9279]
[1723119514566,34.931,154.06,153.96,31.9279]
[1723119515880,0.17,154.05,153.96,31.9279]
[1723119516189,0.17,154.05,153.96,33.22636992]
[1723119516694,0.17,154.05,153.96,31.9279]
[1723119518096,34.931,154.06,153.96,31.9279]
[1723119518097,28.44,154.06,153.96,33.2262855]
[1723119518298,28.44,154.08,153.98,20.0]
[1723119518470,28.44,154.08,154.0,12.0203]
[1723119518781,6.4905,154.07,154.0,12.0203]
[1723119519170,34.9301,154.08,154.0,12.0203]
[1723119519370,28.44,154.08,154.0,13.31862575]
[1723119519889,45.17,154.07,154.0,13.31862575]
[1723119520368,0.17,154.07,154.0,13.31862575]
[1723119520968,28.44,154.08,154.0,13.31862575]
[1723119521474,28.44,154.08,154.01,32.1055]
[1723119521675,28.44,154.08,154.02,1.29825083]
[1723119522291,46.79281307,154.07,154.01,32.1055]
[1723119522594,28.61,154.06,154.01,32.1055]
[1723119522795,35.101,154.06,154.01,32.1055]
[1723119523106,45.17,154.07,154.01,32.1055]
[1723119523399,0.17,154.07,154.01,32.1055]
[1723119523870,80.1002,154.08,154.01,32.1055]
[1723119524376,73.61,154.08,154.01,32.1055]
[1723119524582,80.1001,154.08,154.01,32.1055]
[1723119525271,8.28355411,154.07,154.01,32.1055]
[1723119525602,73.61,154.06,154.01,32.1055]
[1723119525895,28.44,154.04,154.01,32.1055]
[1723119526069,0.17,154.03,154.01,32.1055]
[1723119526271,28.44,154.02,153.97,31.1974]
[1723119526480,28.44,153.99,153.93,31.1974]
[1723119526672,28.44,153.97,153.93,31.1974]
[1723119527298,1.62394877,153.96,153.92,13.0964]
[1723119527484,1.62394877,153.96,153.89,32.0747]
[1723119527485,30.06418339,153.95,153.89,32.0747]
[1723119527682,28.44,153.93,153.89,32.0747]
[1723119527889,34.9376,153.91,153.84,31.6176]
[1723119528077,1.79424276,153.92,153.83,12.7991]
[1723119528078,28.44,153.89,153.83,12.7991]
[1723119528281,28.44,153.87,153.79,31.6176]
[1723119528786,30.0,153.86,153.79,31.6176]
[1723119529098,28.44,153.87,153.78,22.98457536]
[1723119529393,28.44,153.85,153.79,1.30014827]
[1723119529777,28.44,153.85,153.78,22.98457536]
[1723119530288,30.0,153.84,153.78,22.98457536]
[1723119531786,28.44,153.81,153.78,10.18547536]
[1723119531987,1.79574439,153.8,153.78,10.18547536]
[1723119532186,58.44,153.79,153.74,33.0602594]
[1723119532784,58.44,153.79,153.77,6.5032]
[1723119533290,30.0,153.79,153.78,6.5027]
[1723119535012,28.44,153.83,153.81,6.5012]
[1723119535209,28.44,153.85,153.8,6.5019]
[1723119535514,28.44,153.85,153.81,6.5014]
[1723119536302,28.44,153.85,153.74,33.0602594]
[1723119536303,45.34,153.84,153.74,33.0602594]
[1723119536509,28.44,153.81,153.74,33.0602594]
[1723119537030,28.44,153.83,153.74,33.0602594]
[1723119537197,45.17,153.82,153.74,33.0602594]
[1723119537397,0.17,153.81,153.74,33.0602594]
[1723119538420,0.17,153.81,153.79,6.5022]
[1723119538911,0.17,153.81,153.74,33.0602594]
[1723119539115,0.17,153.81,153.78,6.5024]
[1723119539511,28.61,153.81,153.76,6.5036]
[1723119539706,28.44,153.79,153.76,6.5036]
[1723119540021,28.44,153.79,153.74,33.0602594]
[1723119540022,28.44,153.79,153.77,6.5031]
[1723119540220,45.17,153.8,153.78,6.5026]
[1723119540415,28.44,153.81,153.8,6.5019]
[1723119540627,18.7646533,153.9,153.79,6.5022]
[1723119540628,28.44,153.83,153.79,6.5022]
[1723119541919,45.34,153.82,153.79,6.5022]
[1723119543211,28.44,153.81,153.74,33.0602594]
[1723119543523,28.44,153.79,153.75,6.5039]
[1723119543734,46.79596288,153.78,153.75,6.5039]
[1723119544706,45.17,153.78,153.76,6.5033]
[1723119545601,28.44,153.79,153.77,6.5032]
[1723119547444,28.44,153.79,153.75,6.504]
[1723119547445,1.79584025,153.78,153.75,6.504]
[1723119547611,30.3133,153.88,153.74,2.14724585]
[1723119547810,28.44,153.84,153.74,0.8464594]
[1723119548331,28.44,153.84,153.8,6.5018]
[1723119548531,28.44,153.86,153.74,22.14680036]
[1723119548752,28.44,153.86,153.76,12.0874]
[1723119548921,28.44,153.88,153.84,6.5001]
[1723119549622,28.44,153.86,153.77,31.2372]
[1723119550040,28.44,153.84,153.77,31.2372]
[1723119550231,34.9405,153.84,153.77,31.2372]
[1723119550570,28.44,153.84,153.77,31.2372]
[1723119551344,28.44,153.88,153.77,32.53734764]
[1723119551746,28.44,153.88,153.78,0.17]
[1723119552040,28.44,153.88,153.77,31.2372]
[1723119552624,28.44,153.88,153.77,32.53720968]
[1723119552827,28.44,153.92,153.81,12.3798]
[1723119553027,6.4963,153.94,153.81,12.3798]
[1723119553028,28.44,153.94,153.82,49.7395871]
[1723119553255,28.44,154.0,153.81,32.3798]
[1723119553256,35.22315504,153.96,153.85,20.0]
[1723119553422,28.44,154.0,153.85,20.0]
[1723119553423,28.44,153.98,153.87,12.5302]
[1723119553746,34.9346,153.98,153.87,12.5302]
[1723119553957,28.44,153.98,153.88,1.29915474]
[1723119554125,28.44,154.0,153.88,29.73915474]
[1723119554325,28.44,154.0,153.9,51.8199]
[1723119554526,28.44,154.0,153.9,31.8199]
[1723119554834,34.9335,154.0,153.9,31.8199]
[1723119555451,28.44,153.98,153.9,31.8199]
[1723119555945,6.4936,154.0,153.9,31.8199]
[1723119556145,43.0031,154.01,153.9,31.8199]
[1723119556348,6.4935,154.0,153.9,31.8199]
[1723119557839,0.17,153.99,153.9,31.8199]
[1723119558338,6.664,153.99,153.9,31.8199]
[1723119558532,45.17,153.98,153.9,31.8199]
[1723119558739,53.28833749,153.98,153.9,31.8199]
[1723119559256,0.17,153.97,153.87,12.5302]
[1723119559459,36.51,153.95,153.87,12.5302]
[1723119559641,36.51,153.95,153.85,30.6574]
[1723119559642,6.4974,153.91,153.85,30.6574]
[1723119559981,6.6669,153.92,153.85,30.6574]
[1723119560155,8.29152981,153.92,153.85,30.6574]
[1723119560447,51.6673,153.91,153.85,30.6574]
[1723119560653,0.17,153.9,153.85,30.6574]